Cogmind - Beta 16 *** ADVENTURER MODE // 2026.01.07 @ 17:11:53 Player: Dima4z Result: Smashed by cave-in Performance ------------- Evolutions (0) 0 Regions Visited (2) 400 Robots Destroyed (11) 55 Value Destroyed (114) 114 Prototype IDs (0) 0 Alien Tech Used (0) 0 Bonus (-151) -151 TOTAL SCORE: 418 Bonus ------- Friendly Fire -151 Cogmind --------- Core Integrity 0/250 Matter 300/300 Energy 99/100 System Corruption 17% Temperature Cool (0) Movement Core (50) Location -10/Subcaves Parts ------- > --- POWER (1) -------- (None) > --- PROPULSION (2) --- (None) > --- UTILITY (2) ------ (None) > --- WEAPON (2) ------- (None) > --- INVENTORY (5) ---- Subdweller Monowheel Subdweller Optics Scrap Shield Medium Laser Peak State ------------ > --- POWER ------------ Subdweller Power Source > --- PROPULSION ------- Hover Unit Hover Unit > --- UTILITY ---------- Subdweller Optics Seismic Detector > --- WEAPON ----------- Medium Laser Bore Cannon > --- INVENTORY -------- Subdweller Monowheel Improved Terrain Scanner Scrap Shield Medium Laser [Rating: 14] Favorites ----------- Power Light Ion Engine Engine Light Ion Engine Propulsion Hover Unit Wheel Wheel Hover Unit Hover Unit Utility Seismic Detector Device Seismic Detector Storage Small Storage Unit Protection Scrap Shield Weapon Medium Laser Energy Gun Medium Laser Ballistic Gun Light Assault Rifle Ballistic Cannon Bore Cannon Launcher Grenade Launcher Build | -11 -10 -10 ------- Run | Yrd Mat Sub Slots Evolved . | . . . Power . | . . . Propulsion . | . . . Utility . | . . . Weapon . | . . . Parts Attached 23 | 10 6 7 Power 3 | 1 . 2 Engine 3 | 1 . 2 Core . | . . . Reactor . | . . . Propulsion 8 | 4 2 2 Treads . | . . . Leg . | . . . Wheel 6 | 4 . 2 Hover 2 | . 2 . Flight . | . . . Utility 5 | 3 . 2 Device 3 | 2 . 1 Storage 1 | 1 . . Processor . | . . . Hackware . | . . . Protection 1 | . . 1 Artifact . | . . . Weapon 7 | 2 4 1 Energy Gun 4 | 1 3 . Energy Cannon . | . . . Ballistic Gun 1 | 1 . . Ballistic Cannon 1 | . . 1 Launcher 1 | . 1 . Special Weapon . | . . . Impact Weapon . | . . . Slashing Weapon . | . . . Piercing Weapon . | . . . Special Melee Weapon . | . . . Unidentified Prototypes . | . . . Parts Lost 7 | . . 7 Power 1 | . . 1 Propulsion 2 | . . 2 Utility 2 | . . 2 Weapon 2 | . . 2 Highest Loss Streak 7 | . . 7 To Critical Strikes . | . . . Average Backups 4 | 4 4 3 Power . | . . . Propulsion 1 | 1 1 1 Utility 1 | 1 1 1 Weapon 1 | 1 2 1 Tool/Special . | . . . Unused Backups 8 | 3 2 3 Power . | . . . Propulsion 3 | 3 . . Utility 4 | . 2 2 Weapon 1 | . . 1 Tool/Special . | . . . Average Slot Usage (%) 98 | . 99 97 Engine 13 | . 14 13 Wheel 4 | . 9 1 Hover 23 | . 18 25 Device 26 | . 28 26 Energy Gun 21 | . 26 18 Ballistic Cannon 6 | . . 8 Peak Build Rating 14 | 9 9 14 Average Rating 10 | 6 8 11 On Entrance 6 | . 9 9 Avg Prop Armor Cover (%) . | . . . Naked Turns 2 | . . 2 Heaviest Build 25 | 10 10 25 Greatest Support 40 | 32 20 40 Greatest Overweight (x) 2 | . . 2 Average Overweight (x) . | . . . Largest Inventory Capacity 8 | 8 5 5 Average Capacity 5 | 6 5 5 Most Carried 8 | 8 5 5 Average Carried 4 | 4 4 4 Final Capacity 5 | 5 5 5 Final Carried 5 | 4 5 5 Class Distribution -------------------- 96% | Scavenger-Mutant 3% | Mutant Dominant Class ---------------- Scavenger-Mutant | -10/Materials Scavenger-Mutant | -10/Subcaves Resources | -11 -10 -10 ----------- Run | Yrd Mat Sub Matter Collected 625 | 300 20 305 Remotely . | . . . Salvage Created 402 | 140 68 194 Parts 34 | 12 9 13 Haulers Intercepted . | . . . Recyclers Shooed 1 | . 1 . Parts Field Recycled . | . . . Retrieved Matter . | . . . Parts Self-Destructed . | . . . Prevented . | . . . Parts Restored . | . . . Kills | -11 -10 -10 ------- Run | Yrd Mat Sub Combat Hostiles Destroyed 4 | . 3 1 Guns 3 | . 3 . Cannons 1 | . . 1 Classes Destroyed 7 | 3 2 2 Worker 1 | 1 . . Tunneler 3 | 3 . . Recycler 1 | 1 . . Watcher 1 | . 1 . Swarmer 3 | . 3 . Subdweller 1 | . . 1 Thug 1 | . . 1 Best Kill Streak 3 | 2 3 1 Combat Bots Only 3 | . 3 1 Max Kills in Single Turn 1 | 1 1 1 Gunslinging . | . . . Exploded . | . . . Melee . | . . . Uniques/NPCs Destroyed . | . . . Combat | -11 -10 -10 -------- Run | Yrd Mat Sub Hostile Shots Fired 19 | . 10 9 Missed 7 | . 3 4 Hits 12 | . 7 5 Projectile 12 | . 7 5 Damage Taken 810 | . 47 763 Core 269 | . 19 250 Absorbed by Shields . | . . . Ignored by Resistances 39 | . 16 23 Core Remaining (%) 100 | 100 . . Volleys Fired 80 | 17 10 53 Largest 2 | 1 2 2 Hottest 100 | 40 100 100 Shots Fired 92 | 17 19 56 Gun 70 | 17 18 35 Cannon 21 | . . 21 Launcher 1 | . 1 . Special . | . . . Kinetic 21 | . . 21 Thermal 70 | 17 18 35 Explosive 1 | . 1 . Electromagnetic . | . . . Robot Hit Streak 30 | 13 7 30 Robot Miss Streak 2 | 1 2 1 Penetration Max . | . . . Secondary Targets 1 | . 1 . Max Gunslinging Chain 1 | . 1 . Shots Hit Robots 56 | 16 10 30 Core Hits 21 | 6 5 10 Critical Kills 2 | . . 2 Critical Parts Destroyed . | . . . Critical Strikes 5 | . . 5 Burn 2 | . . 2 Destroy 3 | . . 3 Melee Attacks . | . . . Impact . | . . . Slashing . | . . . Piercing . | . . . Sneak Attacks . | . . . Combat Hostiles . | . . . Follow-up Attacks . | . . . Damage Inflicted 809 | 176 138 495 Guns 649 | 176 138 335 Cannons 160 | . . 160 Explosions . | . . . Melee . | . . . Ramming . | . . . Kinetic 160 | . . 160 Thermal 649 | 176 138 335 Explosive . | . . . Electromagnetic . | . . . Impact . | . . . Slashing . | . . . Piercing . | . . . Highest Corruption 17 | . . 17 Average Corruption 10 | . . 10 Corruption Purged . | . . . Corruption Blocked . | . . . Effects 2 | . . 2 Message Errors 1 | . . 1 Heat Flow Errors 1 | . . 1 Overload Shots . | . . . Overflow Damage . | . . . Projectiles . | . . . Explosions . | . . . Melee . | . . . Knockbacks 1 | . . 1 Impact . | . . . Kinetic 1 | . . 1 Secondary . | . . . Self-Inflicted Damage . | . . . Shots . | . . . Rammed . | . . . Targets Rammed . | . . . Kicked . | . . . Crushed . | . . . Highest Temperature 209 | 20 209 168 Average Temperature 72 | 20 71 104 Received Heat Transfer 18 | . 18 . Siege Activations . | . . . Martial Activations . | . . . Shielding Activations . | . . . Robots Disrupted . | . . . Combat Hostiles . | . . . Robots Corrupted . | . . . Combat Hostiles . | . . . Parts Fried . | . . . Impact Corruptions . | . . . Robots Melted . | . . . Combat Hostiles . | . . . Parts Melted 2 | 2 . . Heat Transferred 1954 | 400 407 1147 Parts Sabotaged . | . . . Parts Stolen . | . . . Parts Stripped . | . . . Power Chain Reactions . | . . . Alert | -11 -10 -10 ------- Run | Yrd Mat Sub Maximum Alert Level . | . . . Low Security (%) 100 | 100 100 . Level 1 . | . . . Level 2 . | . . . Level 3 . | . . . Level 4 . | . . . Level 5 . | . . . High Security . | . . . Max Security . | . . . Peak Influence 66 | 5 66 . Initial . | . . . Average 6 | . 10 . Influence Increases 128 | 25 103 . Destroy 0b10 Robot/C 60 | . 60 . Destroy 0b10 Robot/NC 30 | 25 5 . Destroy Leader 12 | . 12 . Destroy Structure 11 | . 11 . Lose Combat Pursuer 15 | . 15 . Influence Decreases 128 | 25 103 . Time Decay 128 | 25 103 . Squads Dispatched . | . . . Investigation . | . . . Extermination . | . . . Reinforcement . | . . . Assault . | . . . Garrison . | . . . Intercept . | . . . Searches Triggered . | . . . Construction Impeded . | . . . Haulers Reinforced . | . . . Active Scanning Responses . | . . . Cargo Convoy Interrupts . | . . . Stealth | -11 -10 -10 --------- Run | Yrd Mat Sub Distress Signals 1 | . 1 . Communications Jammed . | . . . Distress Signals . | . . . Times Spotted 18 | . 8 10 Peak Tracking Total 10 | . 4 10 Tactical Retreats 1 | . 1 . Traps | -11 -10 -10 ------- Run | Yrd Mat Sub Traps Triggered . | . . . Indirectly . | . . . Trap Hack Attempts . | . . . Triggered . | . . . Disarmed . | . . . Reprogrammed . | . . . Reused . | . . . Traps Extracted . | . . . Installed . | . . . Triggered . | . . . Machines | -11 -10 -10 ---------- Run | Yrd Mat Sub Machines Disabled . | . . . Max in Single Turn . | . . . Machines Repaired . | . . . Machines Dismantled . | . . . Machines Sabotaged . | . . . Overloaded Fab Kills . | . . . Hacking | -11 -10 -10 --------- Run | Yrd Mat Sub Machines Accessed . | . . . Terminals . | . . . Fabricators . | . . . Repair Stations . | . . . Recycling Units . | . . . Scanalyzers . | . . . Garrison Access . | . . . Total Hacks . | . . . Successful . | . . . Failed . | . . . Catastrophic . | . . . Database Lockouts . | . . . Manual . | . . . Terminals . | . . . Fabricators . | . . . Repair Stations . | . . . Recycling Units . | . . . Scanalyzers . | . . . Garrison Access . | . . . Terminal Hacks . | . . . Fabricator Hacks . | . . . Repair Station Hacks . | . . . Recycling Unit Hacks . | . . . Scanalyzer . | . . . Garrison Access Hacks . | . . . Unauthorized Hacks . | . . . Terminals . | . . . Fabricators . | . . . Repair Stations . | . . . Recycling Units . | . . . Scanalyzers . | . . . Garrison Access . | . . . Data Cores Recovered . | . . . Used . | . . . Hacking Detections . | . . . Full Trace Events . | . . . Feedback Events . | . . . Feedback Blocked . | . . . Robot Schematics Acquired . | . . . Robots Built . | . . . Authchips . | . . . Time . | . . . Total Robot Build Rating . | . . . Part Schematics Acquired . | . . . Parts Built . | . . . Authchips . | . . . Time . | . . . Total Part Build Rating . | . . . Part Studies Acquired . | . . . Parts Repaired . | . . . Time . | . . . Parts Recycled . | . . . Recycled Matter . | . . . Retrieved Matter . | . . . Retrieved Components . | . . . Parts Scanalyzed . | . . . Part Schematics Acquired . | . . . Parts Damaged . | . . . Bothacking | -11 -10 -10 ------------ Run | Yrd Mat Sub Used RIF Installer . | . . . Robots Hacked . | . . . Non-combat . | . . . Combat . | . . . Robot Hacks Applied . | . . . Relay Couplers Released . | . . . Fabnet Peak Effective % . | . . . Robots Rewired . | . . . Allies Hacked . | . . . Hacks Repelled . | . . . Allies | -11 -10 -10 -------- Run | Yrd Mat Sub Total Allies . | . . . Largest Group . | . . . Highest-Rated Group . | . . . Highest-Rated Ally . | . . . Total Orders . | . . . Ally Attacks . | . . . Total Damage . | . . . Kills . | . . . Allies Corrupted . | . . . Allies Melted . | . . . Intel | -11 -10 -10 ------- Run | Yrd Mat Sub Active Infowar (turns) 2005 | 204 579 1222 Optics 508 | . . 508 Terrain 1456 | 204 579 673 Seismic 1901 | 100 579 1222 Robot Analysis Total . | . . . Derelict Logs Recovered 1 | . . 1 Drone Launches . | . . . Drone Recoveries . | . . . Exploration | -11 -10 -10 ------------- Run | Yrd Mat Sub Turns Passed 2164 | 302 579 1283 Spaces Moved 1481 | 188 331 962 Core 44 | 41 . 3 Treads . | . . . Legs . | . . . Wheels 372 | 147 139 86 Hover 1065 | . 192 873 Flight . | . . . Fastest Speed 50 | 50 56 50 Average Speed 84 | 80 66 90 Slowest Speed 180 | 100 80 180 Overloaded Moves . | . . . Propulsion Burnouts . | . . . Robots Hopped . | . . . Potential Cave-ins 33 | . . 33 Cave-ins Triggered 5 | . . 5 Exploration Rate (%) 12 | 5 15 16 Regions Visited 2 Branch Regions 1 Pre-discovered Areas . | . . . Known Exits Taken . | . . . Unknown Exits Taken 2 | 1 1 . Scrap Searched . | . . . Spaces Dug 20 | . . 20 Terrain Destroyed 32 | . 11 21 Melee . | . . . Projectile 21 | . . 21 AOE 11 | . 11 . Terrain Rammed . | . . . Walls Destroyed . | . . . Machines Disabled . | . . . Actions | -11 -10 -10 --------- Run | Yrd Mat Sub Total 2325 | 326 676 1323 Wait 649 | 86 309 254 Move 1474 | 187 330 957 Hop . | . . . Pick Up 47 | 18 10 19 Fast Attach . | . . . Attach 24 | 10 4 10 Detach 4 | 2 2 . Swap 5 | . 2 3 Drop 35 | 6 9 20 Fire 80 | 17 10 53 Melee . | . . . Ram . | . . . Kick . | . . . Crush . | . . . Escape Stasis 4 | . . 4 Rewire 3 | . . 3 Trap . | . . . Miscellaneous . | . . . Route ------- -11/Scrapyard -10/Materials -10/Subcaves History --------- Turn | Location | Event 16 | -11/Scrapyard | Discovered new exit (range 16) 303 | -11/Scrapyard | Entered Materials 304 | -10/Materials | Build established: Scavenger-Mutant 463 | -10/Materials | Discovered new exit (range 11) 882 | -10/Materials | Entered Subcaves 883 | -10/Subcaves | Approached by a straggling Scientist 946 | -10/Subcaves | Learned Materials stockpile data 1212 | -10/Subcaves | Ambushed by swarm of Subdwellers 1217 | -10/Subcaves | Ambushed by Subdwellers from Twisted Machinery 1217 | -10/Subcaves | Ambushed by Subdwellers from Twisted Machinery 1217 | -10/Subcaves | Ambushed by Subdwellers from Twisted Machinery 1232 | -10/Subcaves | A swath of the cavern ceiling suddenly collapsed 2108 | -10/Subcaves | Ambushed by Subdweller buried in earth 2136 | -10/Subcaves | Crushed by falling debris 2150 | -10/Subcaves | Crushed by falling debris 2151 | -10/Subcaves | Core integrity fell below 50% 2151 | -10/Subcaves | System corruption reached 10% 2156 | -10/Subcaves | Crushed by falling debris 2157 | -10/Subcaves | Core integrity fell below 20% 2163 | -10/Subcaves | Crushed by falling debris 2165 | -10/Subcaves | Crushed by falling debris 2165 | -10/Subcaves | Smashed by cave-in Last Messages --------------- 02145_ HV Slug penetrates Earth. 02150_ The unstable cave ceiling collapses. 02150_ Crushed by falling debris. 02150_ Bore Cannon destroyed. 02150_ Med. Laser destroyed. 02150_ System corrupted by crushing effect (+3). 02150_ Sub. Power Source destroyed. 02150_ System corrupted by crushing effect (+3). 02153_ System corrupted: Heat flow error (+210). 02156_ The unstable cave ceiling collapses. 02156_ Crushed by falling debris. 02156_ Scrap Shield Fragment crushed. WG-QGS(c): "I think it's somewhere east of here" [Achievement: This Is My Hole] 02163_ The unstable cave ceiling collapses. 02163_ Crushed by falling debris. 02163_ Hover Unit destroyed. 02163_ System corrupted by crushing effect (+4). 02165_ The unstable cave ceiling collapses. 02165_ Crushed by falling debris. Map ----- +----------------------------------------------------+ | ?????????????????????????????????????????????????? | | ?????????????????????????????????????????????????? | | ?????????????????????????????????????????????????? | | ?????????????????????????????????????????????????? | | ?????????????????????????????????????????????????? | | ?????????????????????????????????????????????????? | | ?????????????????????????????????????????????????? | | ?????????????????????????????????????????????????? | | ?????????????????????????????????????????????????? | | ????????????????#####????????????????????????????? | | ???????????????## ?????????????????????????????? | | ???????????????# ??????????????????????????????? | | ???????????????# #??????????????????????????????? | | ?#?????######??#" ####?#" ???????????????????????? | | ??????## ####"" # # ???????????????????????? | | ?###### " " "##?????????????????????? | | ?# " "" ???????????????????????? | | ?# # ##" "???????????????????????? | | ## ######" ???????#???????????????? | | " #???????????????????????????? | | ## "" ##???????????#???????????????? | | ## ###### ###????#???????????????????????? | | ?### ##?##" "##???????#??????#?????????????? | | ???###### #?#"" #########??####????????????????? | | ????##??# #?#"#"##" ## #### ##????????????????? | | ??### ### #?#"## "%%##%@ ####????????????????? | | ???# #?#"" "!#=### #####??????????????????? | | ???# #?###""#########?????#???????????????? | | ???# #??#### ##?#?????????????????????????? | | ???#### #??# #"##?????#?????????????????????? | | ??????# #??# ###????????????????????????????? | | ?????## ##??####?#????????????????????????????? | | ???### #????#??????????#?????????????????????? | | ????# #?#?#?????????????????????????????????? | | ????# #??????#??#????????#??????????????????? | | ????## ##???????????????????????????#????????? | | ????### #?????????????#?????#?????????#???????? | | ?#????# ###??????#???????????????????#?????????? | | ??????## #????#????#???????????###?#?#??????????? | | ??###### ##?#?#?#?????#??#????????#???????#?????? | | ?### ## #???????#????#???#?#?????#???#?????###? | | ##* %&&[! #?????#???????????????#??????#????????? | | ## [&&=*=%##???????????????#??????????????#??????? | | # ##!%""#???????##??##????#????#??????#????????? | | # ##&&=]#????????#??????#?#???#??#???#??#??#???? | | ##[%"##?????#?????#?????#??#?????#????????##?? | | !* ###!*%#????????????#??#????#???????#?????????? | | %[ =!!!!!#???????????????#??#????????????#??#???? | | != && *%##???????#???????????????????#??????#?#? | | ] [= &&#?#???????????##?####??#?###??????????? | +----------------------------------------------------+ Best States ------------- Heat Dissipation 25 Energy Generation 15 Energy Capacity 200 Matter Stores 300 Matter Capacity 300 Sight Range 21 Terrain Scan Range 16 Terrain Scan Density 10 Armor Coverage 800 Resistance: KI 20 Resistance: TH 20 Resistance: EX 20 Resistance: EM 20 Resistance: I 20 Resistance: S 20 Resistance: P 20 Evasion (%) 53 Offensive Hacking 10 Item Schematics ----------------- None Robot Schematics ------------------ None Fabricated ------------ Nothing Repaired ---------- Nothing Studied --------- None Alien Tech Used ----------------- None Achievements -------------- Backstab DATA ERROR: Steam Global Achievement% Do Not Disturb Organ Harvest Slippery One Spot Them First This Is My Hole Challenges ------------ None Game ------ Seed TachyonSurgeHammer Manual? 0 Play Time 00:37:46 Cumulative 20.8 hours Start 2026.01.06 @ 02:58:41 End 2026.01.07 @ 17:11:53 Sessions 2 Manual Loads 0 Difficulty Adventurer Special Mode None Game No. 20 Rogue 17 Adventurer 3 Explorer 0 Win Type - Total 0 Types 0/0/0/0/0/0/0/0/0/0 Lore% 5 Gallery% 27 Achievement% 14 Wizard Run 0 Options --------- Layout 1 ASCII 0 Keyboard 1 Movement Numpad Keybinds 0 Fullscreen 1 Font 48/Smallcaps Map View 50x35 Zoom Use 0% Tactical HUD 1 Map Filters NONE Filters NONE Steam 1 RUN: 266d44a7-7ad1-4bb3-a5ce-b47bd1e27116